[Event "61st Mongolian-ch Open 2023"]
[Site "Khovd"]
[Date "2023.05.23"]
[Round "4.5"]
[White "Amartuvshin, Ganzorig"]
[Black "Munkhgal, Gombosuren"]
[Result "1-0"]
[ECO "D37"]
[WhiteElo "2407"]
[BlackElo "2463"]
[Annotator "TA"]
[PlyCount "87"]
[EventDate "2023.05.22"]
[EventType "tourn"]
[EventCountry "MGL"]
[SourceTitle "playchess.com"]
[Source "ChessBase"]
[SourceQuality "1"]
[TimeControl "40/5400+30:1800+30"]

{[%evp 9,87,24,30,18,26,25,29,32,30,23,29,35,30,30,32,26,34,17,41,37,36,9,40,32,35,6,42,34,55,20,52,16,45,47,188,177,182,54,131,124,100,133,103,20,38,0,0,0,0,0,0,0,138,130,318,295,308,299,295,328,654,581,813,666,1250,941,1163,881,1554,1585,1788,1756,29985,1066,29996,29997,29997,29998,29998,29999]} 1. d4 {[%emt 0:05:12]} d5 {[%emt 0:00:04]} 2. c4 {[%emt 0:00:27]} e6 {[%emt 0:00:06]} 3. Nf3 {[%emt 0:00:12]} Nf6 {[%emt 0:00:07]} 4. Nc3 {[%emt 0:00:07]} a6 {[%emt 0:00:02]} 5. cxd5 {[%emt 0:00:07]} exd5 {[%emt 0:00:05]} 6. Bg5 {[%emt 0:00:08] D37: Queen's Gambit Declined: 5 Bf4.} Be6 {[%emt 0:00:02]} 7. e3 {[%emt 0:00:08]} Nbd7 {[%emt 0:00:04]} 8. Bd3 {[%emt 0:00:08] White has an edge.} Bd6 {[%emt 0:00:03]} 9. O-O {[%emt 0:00:08]} c6 {[%emt 0:00:04] 9...c6 scores better than 9...0-0.} 10. Bf4 {[%emt 0:00:30]} Qc7 {[%emt 0:00:05]} 11. Qd2 {[%emt 0:01:17]} O-O {[%emt 0:00:11]} 12. h3 {[%emt 0:00:49]} Rfe8 {[%emt 0:00:31]} 13. a3 {[%emt 0:00:49] [#]} Nf8 $146 {[%emt 0:03:53]} ({Predecessor:} 13... h6 14. Bxd6 Qxd6 15. Rac1 a5 16. Qc2 Nb6 17. Ne5 Nfd7 18. f4 f6 19. Nf3 Bf7 {½-½ Wallis,C (2380)-Praggnanandhaa,R (2517) Adelaide Lidums GM 2017 (7)}) 14. Bxd6 {[%emt 0:00:49]} Qxd6 {[%emt 0:00:04]} 15. Na4 {[%emt 0:05:42]} N8d7 {[%emt 0:04:11]} 16. Qc2 {[%emt 0:03:57]} Ne4 {[%emt 0:00:22]} 17. Nd2 {[%emt 0:13:24]} f5 {[%emt 0:02:14]} 18. b4 {[%emt 0:02:52]} Nf8 {[%emt 0:22:38]} 19. Nc5 {[%emt 0:06:41]} Bc8 {[%emt 0:00:29]} 20. f4 {[%emt 0:00:52]} g5 {[%emt 0:17:18]} (20... Qe7 {simplifies} 21. Ndxe4 fxe4 22. Be2 Ng6) 21. fxg5 {[%emt 0:09:29]} Ng6 {[%emt 0:00:51]} (21... Nxg5 $14 22. Nf3 (22. Bxf5 Rxe3 23. Rf2 Bxf5 $14) 22... Qg3) 22. Bxe4 $18 {[%emt 0:01:34]} fxe4 {[%emt 0:00:10]} 23. Ndb3 {[%emt 0:00:11]} (23. Ncxe4 $18 Rxe4 24. Nxe4 dxe4 25. Qxe4 (25. Qf2 Be6 $11)) 23... b6 {[%emt 0:08:22]} (23... Kh8 $14) 24. Na4 $16 {[%emt 0:00:09]} (24. Qf2 $2 Rf8 25. Qa2 bxc5 26. Rxf8+ Qxf8 $19) 24... Bxh3 {[%emt 0:06:10]} 25. gxh3 {[%emt 0:00:45]} (25. Qf2 Rf8 26. Qe1 Rxf1+ 27. Qxf1 Rf8 $19) 25... Qg3+ {[%emt 0:00:04]} 26. Kh1 {[%emt 0:00:13] Strongly threatening Qg2.} Rf8 {[%emt 0:00:10]} 27. Qh2 {[%emt 0:05:31]} (27. Qxc6 $2 Qxh3+ 28. Kg1 Qxe3+ 29. Kh1 Qh3+ 30. Kg1 Qg4+ 31. Kh1 Qh4+ 32. Kg2 Qxg5+ 33. Kh2 Qh4+ 34. Kg1 Kh8 $19) 27... Qxe3 {[%emt 0:00:19] White must now prevent ...Rxf1+.} 28. Nxb6 {[%emt 0:00:20]} Rxf1+ {[%emt 0:22:53]} 29. Rxf1 {[%emt 0:00:07]} Rf8 {[%emt 0:00:01]} 30. Rxf8+ {[%emt 0:01:44]} Nxf8 {[%emt 0:00:34]} (30... Kxf8 $11 31. Nc5 Qf3+ 32. Qg2 Qd1+ 33. Kh2 e3) 31. Nc5 {[%emt 0:00:22] Nbd7 would be deadly.} Qf3+ $2 {[%emt 0:01:47]} (31... Ng6 $16 {keeps fighting.} 32. Nbd7 (32. Nxa6 $2 {perishes.} Nf4 $19) (32. Qb8+ Kf7 $11) 32... Qxa3) 32. Qg2 $18 {[%emt 0:00:33]} Qd1+ {[%emt 0:00:10] [#]} 33. Kh2 $1 {[%emt 0:00:44] aiming for Qf2.} Qxd4 {[%emt 0:08:37] [#]} 34. Nbd7 {[%emt 0:10:53] Inhibits Qe5+. And now Nxf8 would win.} Nxd7 {[%emt 0:02:33]} (34... Ng6 35. Ne6 (35. Nxa6 Nf4 $11) 35... Qc3) 35. Nxd7 {[%emt 0:00:06]} Kf7 {[%emt 0:01:57]} 36. Qf1+ {[%emt 0:00:43]} Ke8 {[%emt 0:00:00]} 37. Nf6+ {[%emt 0:00:24]} Ke7 {[%emt 0:00:49]} 38. Qf4 {[%emt 0:00:32]} ({Not} 38. Qxa6 Qf2+ 39. Kh1 Qf3+ 40. Kg1 Qe3+ 41. Kh2 Qf2+ 42. Kh1 Qf3+ 43. Kg1 Qg3+ 44. Kh1 Qf3+ $11) 38... Qb2+ {[%emt 0:00:31]} 39. Kg3 {[%emt 0:00:22] Intending Qc7+ and mate.} Qc3+ {[%emt 0:00:27]} 40. Kg4 {[%emt 0:00:00]} e3 {[%emt 0:00:00]} 41. Kf3 {[%emt 0:01:07]} (41. Qc7+ $142 Ke6 42. Nh5 Qe5 43. Nf4+ Qxf4+ 44. Qxf4 Ke7 45. Qxe3+ Kd6 46. Kf5) 41... d4 {[%emt 0:06:55]} 42. Qc7+ {[%emt 0:00:09][%mdl 64] Skewer. White mates.} Kf8 {[%emt 0:00:01]} 43. Qd8+ {[%emt 0:00:28]} Kf7 {[%emt 0:00:14]} 44. Qe8+ {[%emt 0:00:06] An entertaining game by Amartuvshin.   Weighted Error Value: White=0.16 (very precise) /Black=0.61} 1-0

[Event "61st Mongolian-ch Open 2023"]
[Site "Khovd"]
[Date "2023.05.23"]
[Round "4.6"]
[White "Bilguun, Sumiya"]
[Black "Amilal Munkhdalai"]
[Result "1/2-1/2"]
[ECO "B46"]
[WhiteElo "2474"]
[BlackElo "2141"]
[Annotator "TA"]
[PlyCount "62"]
[EventDate "2023.05.22"]
[EventType "tourn"]
[EventCountry "MGL"]
[SourceTitle "playchess.com"]
[Source "ChessBase"]
[SourceQuality "1"]
[TimeControl "40/5400+30:1800+30"]

{[%evp 17,62,20,31,23,32,21,47,0,27,0,10,-16,-23,-27,24,25,40,35,36,27,42,34,73,59,65,46,129,124,143,128,175,184,204,178,387,366,358,0,0,0,0,-2,0,-11,-14,-25,-11]} 1. e4 {[%emt 0:04:49]} c5 {[%emt 0:03:13]} 2. Nc3 {[%emt 0:00:00]} Nc6 {[%emt 0:00:07]} 3. Nf3 {[%emt 0:00:00]} e6 {[%emt 0:00:12]} 4. d4 {[%emt 0:00:00]} cxd4 {[%emt 0:00:10]} 5. Nxd4 {[%emt 0:00:00]} Qc7 {[%emt 0:00:14]} 6. Nxc6 {[%emt 0:03:56]} bxc6 {[%emt 0:00:05]} 7. Bd3 {[%emt 0:00:04]} Nf6 {[%emt 0:00:13]} 8. O-O {[%emt 0:00:15]} a6 {[%emt 0:00:31]} 9. Qe2 {[%emt 0:00:40]} d5 {[%emt 0:00:07]} 10. Bg5 {[%emt 0:05:00] Bxf6 is the strong threat. B46: Sicilian: Taimanov: 5 Nc3 a6.} Bb7 {[%emt 0:00:46]} 11. Rae1 {[%emt 0:02:24]} Be7 {[%emt 0:11:17]} 12. e5 {[%emt 0:11:57] White is slightly better.} h6 {[%emt 0:02:41]} 13. Bh4 {[%emt 0:03:30]} (13. exf6 $2 hxg5 14. g3 gxf6 $17) (13. Bd2 $5 {[%cal Re5f6]} Nd7 14. Na4 $11) 13... Ng8 {[%emt 0:00:13]} 14. Bxe7 {[%emt 0:01:09]} Nxe7 {[%emt 0:00:08] [#]} 15. Qg4 $146 {[%emt 0:00:06]} ({Predecessor:} 15. b3 c5 16. f4 g6 17. Nd1 h5 18. c4 d4 19. Be4 Nf5 20. Rf3 Ke7 21. Nf2 {0-1 Hirneise,J (2202)-Strunski,A (2271) GER-ch U16 Willingen 2008 (6)}) 15... g6 {[%emt 0:01:09]} (15... O-O $142) 16. b4 $11 {[%emt 0:05:22]} c5 {[%emt 0:05:51]} 17. bxc5 {[%emt 0:05:19]} Qxc5 {[%emt 0:00:05]} 18. Ne2 {[%emt 0:09:15]} Bc6 {[%emt 0:05:49]} 19. a4 {[%emt 0:11:42]} Rb8 {[%emt 0:09:52]} 20. Rb1 {[%emt 0:03:13][%cal Be1b1,Bb1b3,Bb3d3][%mdl 32]} O-O {[%emt 0:07:34]} 21. Qf4 {[%emt 0:01:20]} Rfd8 {[%emt 0:30:12]} (21... d4 $14) 22. Qxh6 $16 {[%emt 0:05:00] Strongly threatening Nf4.} d4 {[%emt 0:00:28]} 23. Qg5 {[%emt 0:08:57]} ({Not} 23. Bxa6 Rxb1 24. Rxb1 Qxc2 $17) 23... Bxa4 {[%emt 0:00:17] [#]} (23... Nf5 $16) 24. Nf4 $1 $18 {[%emt 0:03:36]} Bb5 {[%emt 0:01:32]} (24... Bxc2 $2 25. Rbc1 Rb2 26. Bxg6 (26. Bxa6 Qa7 $16) 26... Nxg6 27. Qxd8+ Qf8 28. Qxd4 $18) 25. Rb3 {[%emt 0:05:29]} Bxd3 $2 {[%emt 0:05:03]} (25... Ba4) 26. Rxd3 {[%emt 0:00:09] And now Rh3 would win.} Nf5 {[%emt 0:01:32]} 27. g4 $2 {[%emt 0:04:31]} (27. Nh5 $18) 27... Qe7 $11 {[%emt 0:00:19]} 28. Nxe6 {[%emt 0:02:10]} Qxe6 {[%emt 0:02:05]} ({Much less strong is} 28... fxe6 29. Qxg6+ Ng7 30. Rh3 $16) 29. gxf5 {[%emt 0:00:40]} Qxe5 {[%emt 0:00:15]} 30. Qh4 {[%emt 0:02:39]} Qxf5 {[%emt 0:03:22]} 31. Rh3 {[%emt 0:01:02][%csl Gh3][%cal Rh4h8] [#]} Kg7 {[%emt 0:10:38] Against Qh8+.   Weighted Error Value: White=0.36/Black=0.27 (precise)} (31... Qh5 $5) 1/2-1/2